[Event "10th Cesme Open-A 2024"]
[Site "Cesme"]
[Date "2024.06.30"]
[Round "9"]
[White "Domalchuk-Jonasson, Aleksandr"]
[Black "Zerey, Demhat"]
[Result "0-1"]
[ECO "A46"]
[WhiteElo "2380"]
[BlackElo "2038"]
[Annotator "RC"]
[PlyCount "82"]
[EventDate "2024.06.23"]
[EventType "swiss"]
[EventCountry "TUR"]
[SourceTitle "playchess.com"]
[Source "ChessBase"]
[SourceQuality "1"]
[TimeControl "5400+30"]

1. Nf3 {[%emt 0:01:00]} d5 {[%emt 0:03:00]} 2. g3 {[%emt 0:00:30]} Nf6 {[%emt 0:00:00]} 3. Bg2 {[%emt 0:01:30]} e6 {[%emt 0:00:00]} 4. O-O {[%emt 0:00:30]} Be7 {[%emt 0:00:30]} 5. d4 {[%emt 0:00:30]} b5 {[%emt 0:03:30]} 6. a4 {[%emt 0:00:30]} b4 {[%emt 0:00:30]} 7. c4 {[%emt 0:00:00]} bxc3 {[%emt 0:00:00]} 8. bxc3 {[%emt 0:00:00]} a5 {[%emt 0:05:00]} 9. c4 {[%emt 0:03:30]} dxc4 {[%emt 0:08:30]} 10. Ne5 {[%emt 0:10:30]} Nd5 {[%emt 0:04:30]} 11. Nxc4 {[%emt 0:03:30]} O-O {[%emt 0:03:30]} 12. e4 {[%emt 0:07:30]} Nb4 {[%emt 0:07:30]} 13. Nba3 {[%emt 0:02:30]} Bb7 {[%emt 0:02:30]} 14. Be3 {[%emt 0:07:30]} Nd7 {[%emt 0:05:30]} 15. d5 {[%emt 0:03:30]} exd5 {[%emt 0:02:30]} 16. exd5 {[%emt 0:00:30]} Bc5 {[%emt 0:06:30]} 17. Rc1 {[%emt 0:09:30]} Bxe3 {[%emt 0:04:30]} 18. Nxe3 {[%emt 0:01:30]} Nf6 {[%emt 0:04:30]} 19. Rc5 {[%emt 0:02:30]} Nd7 {[%emt 0:09:30]} 20. Rc4 {[%emt 0:07:30]} Ba6 {[%emt 0:03:30]} 21. Nb5 {[%emt 0:00:30]} Bxb5 {[%emt 0:02:30]} 22. axb5 {[%emt 0:00:00]} Rb8 {[%emt 0:01:30]} 23. Qa1 {[%emt 0:11:00]} Rxb5 {[%emt 0:02:30]} 24. Rfc1 {[%emt 0:01:30]} Nd3 {[%emt 0:01:42]} 25. R1c3 {[%emt 0:04:30]} N3c5 {[%emt 0:05:47]} 26. Bf1 {[%emt 0:03:21]} Qf6 {[%emt 0:06:34]} 27. Qc1 {[%emt 0:10:30]} Qb6 {[%emt 0:03:53]} 28. Nf5 {[%emt 0:00:50]} Qf6 {[%emt 0:01:05]} 29. Ne3 {[%emt 0:05:25]} Qb6 {[%emt 0:00:15]} 30. Nf5 {[%emt 0:00:30]} Qf6 {[%emt 0:00:09]} 31. Rf4 {[%emt 0:02:44]} Rb4 {[%emt 0:00:46]} 32. Qe3 {[%emt 0:00:36]} Rxf4 {[%emt 0:00:34]} 33. Ne7+ {[%emt 0:00:31]} Kh8 {[%emt 0:00:17]} 34. gxf4 {[%emt 0:00:17]} Re8 {[%emt 0:00:00]} 35. Rxc5 {[%emt 0:00:42]} Nxc5 {[%emt 0:01:05]} 36. Qxc5 {[%emt 0:00:40]} Qxe7 {[%emt 0:00:14]} 37. Qxa5 {[%emt 0:00:00]} h6 {[%emt 0:00:26]} 38. h3 {[%emt 0:00:32]} Qd6 {[%emt 0:01:10]} 39. Qa4 {[%emt 0:00:09]} Re1 {[%emt 0:01:28]} 40. Qa8+ {[%emt 0:00:30]} Kh7 {[%emt 0:00:30]} 41. Qa5 {[%emt 0:00:00]} Qg6+ {[%emt 0:00:00]} 0-1

[Event "10th Cesme Open-A 2024"]
[Site "Cesme"]
[Date "2024.06.30"]
[Round "9"]
[White "Ebrahimi Herab, Hamidreza"]
[Black "Taspinar, Yanki"]
[Result "1-0"]
[ECO "D36"]
[WhiteElo "2333"]
[BlackElo "2309"]
[Annotator "RC"]
[PlyCount "75"]
[EventDate "2024.06.23"]
[EventType "swiss"]
[EventCountry "TUR"]
[SourceTitle "playchess.com"]
[Source "ChessBase"]
[SourceQuality "1"]
[TimeControl "5400+30"]

1. d4 {[%emt 0:01:00]} d5 {[%emt 0:15:00]} 2. c4 {[%emt 0:00:30]} e6 {[%emt 0:00:30]} 3. Nc3 {[%emt 0:00:00]} Nf6 {[%emt 0:00:00]} 4. cxd5 {[%emt 0:00:00]} exd5 {[%emt 0:00:00]} 5. Bg5 {[%emt 0:00:30]} c6 {[%emt 0:00:30]} 6. Qc2 {[%emt 0:00:30]} Be6 {[%emt 0:00:00]} 7. e3 {[%emt 0:00:30]} h6 {[%emt 0:00:00]} 8. Bh4 {[%emt 0:00:30]} Nbd7 {[%emt 0:00:00]} 9. Bd3 {[%emt 0:00:30]} g5 {[%emt 0:00:00]} 10. Bg3 {[%emt 0:00:30]} Nh5 {[%emt 0:00:30]} 11. Nge2 {[%emt 0:02:30]} Nxg3 {[%emt 0:00:00]} 12. Nxg3 {[%emt 0:00:30]} h5 {[%emt 0:00:00]} 13. O-O-O {[%emt 0:05:30]} h4 {[%emt 0:24:30]} 14. Nge2 {[%emt 0:03:30]} Qf6 {[%emt 0:03:30]} 15. e4 {[%emt 0:09:30]} Nb6 {[%emt 0:11:30]} 16. exd5 {[%emt 0:15:30]} Nxd5 {[%emt 0:01:30]} 17. Be4 {[%emt 0:07:30]} O-O-O {[%emt 0:07:30]} 18. Nxd5 {[%emt 0:09:30]} Bxd5 {[%emt 0:00:30]} 19. Bxd5 {[%emt 0:05:30]} Rxd5 {[%emt 0:00:30]} 20. Qa4 {[%emt 0:00:30]} Qf5 {[%emt 0:17:02]} 21. Nc3 {[%emt 0:10:30]} Rd7 {[%emt 0:09:06]} 22. Qxa7 {[%emt 0:11:19]} g4 {[%emt 0:01:02]} 23. Rd2 {[%emt 0:00:28]} Kc7 {[%emt 0:04:18]} 24. Rc2 {[%emt 0:00:26]} Bh6+ {[%emt 0:04:43]} 25. Kb1 {[%emt 0:00:07]} Re8 {[%emt 0:00:15]} 26. Rd1 {[%emt 0:00:53]} Red8 {[%emt 0:00:32]} 27. a3 {[%emt 0:01:25]} Bg7 {[%emt 0:00:17]} 28. a4 {[%emt 0:00:53]} Qf4 {[%emt 0:00:43]} 29. Nb5+ {[%emt 0:02:06]} Kc8 {[%emt 0:00:00]} 30. Rdc1 {[%emt 0:00:00]} Rc7 {[%emt 0:00:53]} 31. g3 {[%emt 0:00:53]} Qe4 {[%emt 0:00:01]} 32. Nxc7 {[%emt 0:02:34]} Kxc7 {[%emt 0:00:30]} 33. Ka1 {[%emt 0:00:30]} Rd6 {[%emt 0:00:30]} 34. Qa5+ {[%emt 0:00:30]} Kd7 {[%emt 0:00:30]} 35. Qa8 {[%emt 0:00:30]} Kc7 {[%emt 0:00:30]} 36. Rc4 {[%emt 0:00:30]} Bxd4 {[%emt 0:00:30]} 37. Rb4 {[%emt 0:00:30]} c5 {[%emt 0:00:30]} 38. Rxc5+ {[%emt 0:00:30]} 1-0

[Event "10th Cesme Open-A 2024"]
[Site "Cesme"]
[Date "2024.06.30"]
[Round "9"]
[White "Tarlabasi, Emirhan"]
[Black "Eke, Salih"]
[Result "1-0"]
[ECO "E71"]
[WhiteElo "2303"]
[BlackElo "2251"]
[Annotator "RC"]
[PlyCount "59"]
[EventDate "2024.06.23"]
[EventType "swiss"]
[EventCountry "TUR"]
[SourceTitle "playchess.com"]
[Source "ChessBase"]
[SourceQuality "1"]
[TimeControl "5400+30"]

1. d4 {[%emt 0:07:00]} Nf6 {[%emt 0:01:00]} 2. c4 {[%emt 0:00:30]} g6 {[%emt 0:02:30]} 3. Nc3 {[%emt 0:03:30]} Bg7 {[%emt 0:00:30]} 4. e4 {[%emt 0:00:30]} d6 {[%emt 0:00:30]} 5. h3 {[%emt 0:01:30]} O-O {[%emt 0:01:30]} 6. Be3 {[%emt 0:00:30]} e5 {[%emt 0:07:30]} 7. d5 {[%emt 0:01:30]} Nbd7 {[%emt 0:02:30]} 8. g4 {[%emt 0:06:30]} a5 {[%emt 0:01:30]} 9. Nge2 {[%emt 0:02:30]} b6 {[%emt 0:01:30]} 10. Ng3 {[%emt 0:01:30]} Nc5 {[%emt 0:03:30]} 11. Be2 {[%emt 0:03:30]} Nfd7 {[%emt 0:05:30]} 12. Qd2 {[%emt 0:03:30]} Ba6 {[%emt 0:03:30]} 13. h4 {[%emt 0:02:30]} Qe7 {[%emt 0:00:30]} 14. O-O-O {[%emt 0:12:30]} f6 {[%emt 0:03:30]} 15. h5 {[%emt 0:00:30]} a4 {[%emt 0:12:30]} 16. hxg6 {[%emt 0:07:30]} hxg6 {[%emt 0:00:30]} 17. Rdg1 {[%emt 0:00:30]} Kf7 {[%emt 0:02:30]} 18. Nf5 {[%emt 0:24:00]} gxf5 {[%emt 0:00:30]} 19. gxf5 {[%emt 0:00:00]} Rh8 {[%emt 0:00:30]} 20. Rxg7+ {[%emt 0:00:40]} Kxg7 {[%emt 0:00:30]} 21. Bh6+ {[%emt 0:00:20]} Kg8 {[%emt 0:03:30]} 22. Rg1+ {[%emt 0:02:17]} Kh7 {[%emt 0:00:00]} 23. Qe3 {[%emt 0:02:38]} Rag8 {[%emt 0:21:00]} 24. Rh1 {[%emt 0:00:43]} Rg5 {[%emt 0:00:30]} 25. Bf8+ {[%emt 0:03:11]} Kg8 {[%emt 0:00:00]} 26. Rxh8+ {[%emt 0:00:23]} Kxh8 {[%emt 0:00:00]} 27. Bxe7 {[%emt 0:00:00]} Kg7 {[%emt 0:01:30]} 28. Bd8 {[%emt 0:01:00]} Kf7 {[%emt 0:02:30]} 29. Bxc7 {[%emt 0:00:51]} Ke7 {[%emt 0:00:30]} 30. Qh3 {[%emt 0:00:19]} 1-0

[Event "10th Cesme Open-A 2024"]
[Site "Cesme"]
[Date "2024.06.30"]
[Round "9"]
[White "Karaoglan, Kivanc"]
[Black "Selbes, Tamer Tarik"]
[Result "1/2-1/2"]
[ECO "B06"]
[WhiteElo "2274"]
[BlackElo "2183"]
[Annotator "RC"]
[PlyCount "86"]
[EventDate "2024.06.23"]
[EventType "swiss"]
[EventCountry "TUR"]
[SourceTitle "playchess.com"]
[Source "ChessBase"]
[SourceQuality "1"]
[TimeControl "5400+30"]

1. e4 {[%emt 0:02:00]} g6 {[%emt 0:03:00]} 2. d4 {[%emt 0:01:30]} Bg7 {[%emt 0:00:30]} 3. Nf3 {[%emt 0:00:30]} d6 {[%emt 0:00:30]} 4. Bc4 {[%emt 0:00:30]} c6 {[%emt 0:00:30]} 5. Bb3 {[%emt 0:02:30]} Nf6 {[%emt 0:01:30]} 6. Qe2 {[%emt 0:01:30]} O-O {[%emt 0:00:30]} 7. e5 {[%emt 0:02:30]} dxe5 {[%emt 0:00:30]} 8. dxe5 {[%emt 0:00:30]} Nd5 {[%emt 0:00:30]} 9. h3 {[%emt 0:07:30]} a5 {[%emt 0:01:30]} 10. a3 {[%emt 0:05:30]} Na6 {[%emt 0:00:30]} 11. O-O {[%emt 0:00:30]} Nc5 {[%emt 0:00:30]} 12. Ba2 {[%emt 0:02:30]} Be6 {[%emt 0:06:30]} 13. Rd1 {[%emt 0:03:30]} Qc7 {[%emt 0:03:30]} 14. c4 {[%emt 0:09:30]} Nb6 {[%emt 0:01:30]} 15. Be3 {[%emt 0:01:30]} Nbd7 {[%emt 0:00:30]} 16. Nc3 {[%emt 0:02:30]} a4 {[%emt 0:01:30]} 17. Rac1 {[%emt 0:05:30]} b6 {[%emt 0:00:30]} 18. Bf4 {[%emt 0:06:30]} Qb7 {[%emt 0:03:30]} 19. Nd4 {[%emt 0:06:30]} Rfe8 {[%emt 0:02:30]} 20. Rd2 {[%emt 0:05:30]} Nf8 {[%emt 0:05:30]} 21. Rcd1 {[%emt 0:02:30]} Bd7 {[%emt 0:05:30]} 22. Ne4 {[%emt 0:04:30]} Rad8 {[%emt 0:11:30]} 23. Nxc5 {[%emt 0:03:30]} bxc5 {[%emt 0:00:30]} 24. Nf3 {[%emt 0:00:30]} Ne6 {[%emt 0:00:30]} 25. Qe4 {[%emt 0:01:30]} Bc8 {[%emt 0:03:30]} 26. Be3 {[%emt 0:00:30]} Rxd2 {[%emt 0:00:30]} 27. Rxd2 {[%emt 0:00:30]} f5 {[%emt 0:16:30]} 28. exf6 {[%emt 0:01:30]} exf6 {[%emt 0:00:30]} 29. Bxc5 {[%emt 0:02:40]} f5 {[%emt 0:00:30]} 30. Qe2 {[%emt 0:00:36]} Bd7 {[%emt 0:00:00]} 31. Bd6 {[%emt 0:03:17]} c5 {[%emt 0:03:00]} 32. Qd1 {[%emt 0:04:07]} Bc6 {[%emt 0:00:30]} 33. b4 {[%emt 0:00:22]} axb3 {[%emt 0:02:30]} 34. Qxb3 {[%emt 0:00:36]} Qa8 {[%emt 0:04:30]} 35. Re2 {[%emt 0:03:12]} Be4 {[%emt 0:05:14]} 36. Bb1 {[%emt 0:04:00]} Rd8 {[%emt 0:00:18]} 37. Bxe4 {[%emt 0:01:18]} fxe4 {[%emt 0:00:01]} 38. Qb6 {[%emt 0:00:00]} Qa4 {[%emt 0:14:56]} 39. Rxe4 {[%emt 0:03:45]} Qd1+ {[%emt 0:00:37]} 40. Re1 {[%emt 0:00:44]} Rxd6 {[%emt 0:00:36]} 41. Qb8+ {[%emt 0:00:11]} Rd8 {[%emt 0:00:48]} 42. Qb6 {[%emt 0:00:13]} Rd6 {[%emt 0:02:03]} 43. Qb8+ {[%emt 0:00:09]} Rd8 {[%emt 0:00:14]} 1/2-1/2

[Event "10th Cesme Open-A 2024"]
[Site "Cesme"]
[Date "2024.06.30"]
[Round "9"]
[White "Barrish, Daniel"]
[Black "Kamer, Kayra"]
[Result "0-1"]
[ECO "E91"]
[WhiteElo "2256"]
[BlackElo "2316"]
[Annotator "RC"]
[PlyCount "64"]
[EventDate "2024.06.23"]
[EventType "swiss"]
[EventCountry "TUR"]
[SourceTitle "playchess.com"]
[Source "ChessBase"]
[SourceQuality "1"]
[TimeControl "5400+30"]

1. d4 {[%emt 0:12:00]} Nf6 {[%emt 0:01:00]} 2. c4 {[%emt 0:00:30]} g6 {[%emt 0:00:30]} 3. Nc3 {[%emt 0:00:30]} Bg7 {[%emt 0:00:30]} 4. e4 {[%emt 0:00:30]} d6 {[%emt 0:00:00]} 5. Be2 {[%emt 0:00:00]} Nc6 {[%emt 0:08:00]} 6. Nf3 {[%emt 0:01:00]} O-O {[%emt 0:01:30]} 7. d5 {[%emt 0:03:30]} Ne5 {[%emt 0:00:30]} 8. Nxe5 {[%emt 0:00:30]} dxe5 {[%emt 0:00:00]} 9. h4 {[%emt 0:03:30]} e6 {[%emt 0:00:00]} 10. h5 {[%emt 0:02:30]} exd5 {[%emt 0:00:30]} 11. h6 {[%emt 0:01:30]} Bh8 {[%emt 0:00:30]} 12. cxd5 {[%emt 0:00:00]} Ne8 {[%emt 0:00:30]} 13. Bg4 {[%emt 0:02:00]} f5 {[%emt 0:00:30]} 14. exf5 {[%emt 0:01:30]} gxf5 {[%emt 0:00:30]} 15. Bh5 {[%emt 0:01:30]} Nd6 {[%emt 0:01:30]} 16. Qe2 {[%emt 0:15:30]} b5 {[%emt 0:07:30]} 17. f4 {[%emt 0:08:30]} e4 {[%emt 0:01:30]} 18. g4 {[%emt 0:01:30]} b4 {[%emt 0:01:30]} 19. Qg2 {[%emt 0:03:30]} Bf6 {[%emt 0:03:30]} 20. g5 {[%emt 0:01:30]} Bh8 {[%emt 0:00:30]} 21. g6 {[%emt 0:02:30]} Bf6 {[%emt 0:00:00]} 22. g7 {[%emt 0:10:30]} Rf7 {[%emt 0:00:00]} 23. Bxf7+ {[%emt 0:01:30]} Nxf7 {[%emt 0:00:30]} 24. Nd1 {[%emt 0:01:30]} Qxd5 {[%emt 0:00:00]} 25. Be3 {[%emt 0:02:30]} Ba6 {[%emt 0:01:00]} 26. Rc1 {[%emt 0:01:30]} Rd8 {[%emt 0:01:30]} 27. Qc2 {[%emt 0:01:30]} Qb5 {[%emt 0:01:30]} 28. Kf2 {[%emt 0:00:30]} Rd6 {[%emt 0:01:30]} 29. a4 {[%emt 0:05:31]} Bh4+ {[%emt 0:10:30]} 30. Rxh4 {[%emt 0:00:47]} Qf1+ {[%emt 0:00:30]} 31. Kg3 {[%emt 0:00:00]} Rg6+ {[%emt 0:00:30]} 32. Kh2 {[%emt 0:00:20]} Be2 {[%emt 0:00:00]} 0-1

[Event "10th Cesme Open-A 2024"]
[Site "Cesme"]
[Date "2024.06.30"]
[Round "9"]
[White "Bolat, Inayat"]
[Black "Bicer, Atakan Mert"]
[Result "1-0"]
[ECO "B12"]
[WhiteElo "2232"]
[BlackElo "2313"]
[Annotator "RC"]
[PlyCount "89"]
[EventDate "2024.06.23"]
[EventType "swiss"]
[EventCountry "TUR"]
[SourceTitle "playchess.com"]
[Source "ChessBase"]
[SourceQuality "1"]
[TimeControl "5400+30"]

1. e4 {[%emt 0:03:00]} c6 {[%emt 0:01:00]} 2. d4 {[%emt 0:00:30]} d5 {[%emt 0:00:30]} 3. e5 {[%emt 0:00:30]} Bf5 {[%emt 0:00:30]} 4. Nf3 {[%emt 0:00:00]} e6 {[%emt 0:00:00]} 5. Be2 {[%emt 0:00:00]} Ne7 {[%emt 0:00:00]} 6. O-O {[%emt 0:00:30]} Nd7 {[%emt 0:00:00]} 7. Re1 {[%emt 0:02:30]} h6 {[%emt 0:00:00]} 8. Nbd2 {[%emt 0:00:30]} Bh7 {[%emt 0:01:30]} 9. Nf1 {[%emt 0:01:30]} Nf5 {[%emt 0:07:30]} 10. c3 {[%emt 0:03:30]} Be7 {[%emt 0:03:30]} 11. Bd3 {[%emt 0:01:30]} h5 {[%emt 0:16:30]} 12. Qc2 {[%emt 0:02:30]} h4 {[%emt 0:02:30]} 13. Ne3 {[%emt 0:07:30]} Nxe3 {[%emt 0:12:30]} 14. Bxe3 {[%emt 0:00:30]} Bxd3 {[%emt 0:00:00]} 15. Qxd3 {[%emt 0:00:00]} Rh5 {[%emt 0:00:00]} 16. b4 {[%emt 0:04:00]} Qc7 {[%emt 0:08:30]} 17. a4 {[%emt 0:01:30]} Rf5 {[%emt 0:02:30]} 18. Nd2 {[%emt 0:10:30]} f6 {[%emt 0:04:30]} 19. exf6 {[%emt 0:03:30]} Nxf6 {[%emt 0:00:30]} 20. b5 {[%emt 0:01:30]} Kf7 {[%emt 0:07:30]} 21. bxc6 {[%emt 0:00:30]} bxc6 {[%emt 0:01:30]} 22. Qe2 {[%emt 0:04:30]} Kg8 {[%emt 0:07:30]} 23. g4 {[%emt 0:02:30]} hxg3 {[%emt 0:03:30]} 24. fxg3 {[%emt 0:00:30]} Nd7 {[%emt 0:00:39]} 25. Bf4 {[%emt 0:01:30]} e5 {[%emt 0:01:10]} 26. dxe5 {[%emt 0:00:30]} Raf8 {[%emt 0:01:54]} 27. e6 {[%emt 0:02:30]} Qb6+ {[%emt 0:00:09]} 28. Be3 {[%emt 0:00:30]} Nc5 {[%emt 0:00:05]} 29. Bd4 {[%emt 0:00:30]} Qc7 {[%emt 0:00:59]} 30. Kh1 {[%emt 0:26:30]} Qd6 {[%emt 0:03:30]} 31. Rab1 {[%emt 0:04:46]} Nxa4 {[%emt 0:06:38]} 32. Rb7 {[%emt 0:00:07]} Nc5 {[%emt 0:03:48]} 33. Qg4 {[%emt 0:00:56]} R5f6 {[%emt 0:00:10]} 34. Bxf6 {[%emt 0:02:21]} Bxf6 {[%emt 0:00:00]} 35. Rf7 {[%emt 0:04:47]} Nd3 {[%emt 0:01:11]} 36. Rxf8+ {[%emt 0:01:43]} Qxf8 {[%emt 0:01:16]} 37. Rf1 {[%emt 0:01:25]} Nc5 {[%emt 0:02:00]} 38. c4 {[%emt 0:01:55]} Qe7 {[%emt 0:01:08]} 39. cxd5 {[%emt 0:01:34]} cxd5 {[%emt 0:00:06]} 40. Rb1 {[%emt 0:00:24]} Qe8 {[%emt 0:02:01]} 41. Qf5 {[%emt 0:01:28]} Qa8 {[%emt 0:00:18]} 42. Nf3 {[%emt 0:00:38]} d4 {[%emt 0:00:56]} 43. Kg2 {[%emt 0:00:42]} Ne4 {[%emt 0:00:20]} 44. e7 {[%emt 0:01:14]} Ng5 {[%emt 0:01:17]} 45. Re1 {[%emt 0:00:43]} 1-0

[Event "10th Cesme Open-A 2024"]
[Site "Cesme"]
[Date "2024.06.30"]
[Round "9"]
[White "Ozcan, Kaan"]
[Black "Uysal, Ugur"]
[Result "1/2-1/2"]
[ECO "E62"]
[WhiteElo "2227"]
[BlackElo "2058"]
[Annotator "RC"]
[PlyCount "64"]
[EventDate "2024.06.23"]
[EventType "swiss"]
[EventCountry "TUR"]
[SourceTitle "playchess.com"]
[Source "ChessBase"]
[SourceQuality "1"]
[TimeControl "5400+30"]

1. d4 {[%emt 0:01:00]} Nf6 {[%emt 0:05:00]} 2. c4 {[%emt 0:00:30]} g6 {[%emt 0:00:30]} 3. Nf3 {[%emt 0:00:30]} Bg7 {[%emt 0:00:00]} 4. g3 {[%emt 0:00:00]} O-O {[%emt 0:00:00]} 5. Bg2 {[%emt 0:00:00]} d6 {[%emt 0:00:00]} 6. O-O {[%emt 0:00:00]} c6 {[%emt 0:00:00]} 7. Nc3 {[%emt 0:00:00]} Qb6 {[%emt 0:00:00]} 8. Qc2 {[%emt 0:01:30]} Bf5 {[%emt 0:00:00]} 9. e4 {[%emt 0:03:30]} Nxe4 {[%emt 0:00:30]} 10. g4 {[%emt 0:02:30]} Ng3 {[%emt 0:10:30]} 11. gxf5 {[%emt 0:00:30]} Nxf1 {[%emt 0:00:00]} 12. Kxf1 {[%emt 0:00:30]} Qa6 {[%emt 0:05:00]} 13. Ne2 {[%emt 0:02:30]} Nd7 {[%emt 0:02:30]} 14. Bg5 {[%emt 0:02:30]} Rae8 {[%emt 0:00:00]} 15. b3 {[%emt 0:01:30]} e6 {[%emt 0:03:00]} 16. fxg6 {[%emt 0:00:00]} fxg6 {[%emt 0:00:30]} 17. Re1 {[%emt 0:02:00]} e5 {[%emt 0:07:30]} 18. dxe5 {[%emt 0:00:30]} Nxe5 {[%emt 0:03:30]} 19. Nxe5 {[%emt 0:03:30]} Rxe5 {[%emt 0:02:30]} 20. Bh4 {[%emt 0:01:30]} Qb6 {[%emt 0:12:30]} 21. Bg3 {[%emt 0:02:30]} Ree8 {[%emt 0:07:30]} 22. Qd2 {[%emt 0:02:30]} Qc5 {[%emt 0:14:30]} 23. Nc3 {[%emt 0:03:30]} d5 {[%emt 0:02:30]} 24. Rxe8 {[%emt 0:05:30]} Rxe8 {[%emt 0:00:30]} 25. Na4 {[%emt 0:00:00]} Qe7 {[%emt 0:03:30]} 26. cxd5 {[%emt 0:03:00]} Qf6 {[%emt 0:00:30]} 27. Kg1 {[%emt 0:05:30]} Qa1+ {[%emt 0:03:17]} 28. Bf1 {[%emt 0:00:00]} Re1 {[%emt 0:00:33]} 29. Qd3 {[%emt 0:00:00]} Rd1 {[%emt 0:00:58]} 30. Qe2 {[%emt 0:02:30]} Re1 {[%emt 0:00:11]} 31. Qd3 {[%emt 0:00:30]} Rd1 {[%emt 0:00:05]} 32. Qe2 {[%emt 0:00:30]} Re1 {[%emt 0:00:05]} 1/2-1/2

[Event "10th Cesme Open-A 2024"]
[Site "Cesme"]
[Date "2024.06.30"]
[Round "9"]
[White "Maruflu, Enes Yusuf"]
[Black "Ince, Taylan Ruzgar"]
[Result "1/2-1/2"]
[ECO "C13"]
[WhiteElo "2141"]
[BlackElo "2243"]
[Annotator "RC"]
[PlyCount "52"]
[EventDate "2024.06.23"]
[EventType "swiss"]
[EventCountry "TUR"]
[SourceTitle "playchess.com"]
[Source "ChessBase"]
[SourceQuality "1"]
[TimeControl "5400+30"]

1. e4 {[%emt 0:01:00]} e6 {[%emt 0:02:00]} 2. d4 {[%emt 0:00:30]} d5 {[%emt 0:00:00]} 3. Nc3 {[%emt 0:00:00]} Nf6 {[%emt 0:01:00]} 4. Bg5 {[%emt 0:00:00]} dxe4 {[%emt 0:00:30]} 5. Nxe4 {[%emt 0:00:30]} Nbd7 {[%emt 0:00:00]} 6. Nf3 {[%emt 0:02:30]} h6 {[%emt 0:00:00]} 7. Bh4 {[%emt 0:03:30]} Be7 {[%emt 0:01:30]} 8. Nxf6+ {[%emt 0:01:30]} Bxf6 {[%emt 0:00:30]} 9. Bxf6 {[%emt 0:03:30]} Nxf6 {[%emt 0:00:00]} 10. Bd3 {[%emt 0:00:30]} b6 {[%emt 0:01:00]} 11. Ne5 {[%emt 0:07:30]} Bb7 {[%emt 0:11:30]} 12. Bb5+ {[%emt 0:03:30]} Kf8 {[%emt 0:00:30]} 13. Qd2 {[%emt 0:10:30]} Bxg2 {[%emt 0:13:30]} 14. Rg1 {[%emt 0:00:00]} Be4 {[%emt 0:00:00]} 15. O-O-O {[%emt 0:02:00]} a6 {[%emt 0:20:00]} 16. Be2 {[%emt 0:02:30]} g6 {[%emt 0:07:30]} 17. Qf4 {[%emt 0:02:30]} Bf5 {[%emt 0:00:30]} 18. h4 {[%emt 0:07:30]} h5 {[%emt 0:03:30]} 19. d5 {[%emt 0:07:30]} exd5 {[%emt 0:12:30]} 20. Bd3 {[%emt 0:04:30]} Bxd3 {[%emt 0:06:50]} 21. Rxd3 {[%emt 0:01:30]} Qd6 {[%emt 0:00:29]} 22. Rxd5 {[%emt 0:01:30]} Qxd5 {[%emt 0:03:06]} 23. Qxf6 {[%emt 0:00:30]} Rg8 {[%emt 0:01:54]} 24. Rd1 {[%emt 0:05:30]} Qe6 {[%emt 0:02:10]} 25. Nd7+ {[%emt 0:00:30]} Ke8 {[%emt 0:00:05]} 26. Qg5 {[%emt 0:08:30]} Qxd7 {[%emt 0:01:20]} 1/2-1/2

[Event "10th Cesme Open-A 2024"]
[Site "Cesme"]
[Date "2024.06.30"]
[Round "9"]
[White "Zeynalli, Rashad"]
[Black "Ebrahimi Rashti, Asal"]
[Result "1-0"]
[ECO "A47"]
[WhiteElo "2127"]
[BlackElo "2001"]
[Annotator "RC"]
[PlyCount "57"]
[EventDate "2024.06.23"]
[EventType "swiss"]
[EventCountry "TUR"]
[SourceTitle "playchess.com"]
[Source "ChessBase"]
[SourceQuality "1"]
[TimeControl "5400+30"]

1. d4 {[%emt 0:01:00]} Nf6 {[%emt 0:01:00]} 2. Bf4 {[%emt 0:00:00]} e6 {[%emt 0:00:00]} 3. e3 {[%emt 0:00:00]} c5 {[%emt 0:01:00]} 4. Nf3 {[%emt 0:00:30]} cxd4 {[%emt 0:00:30]} 5. exd4 {[%emt 0:00:30]} b6 {[%emt 0:01:30]} 6. Bd3 {[%emt 0:04:30]} Bb7 {[%emt 0:00:30]} 7. O-O {[%emt 0:03:30]} Be7 {[%emt 0:00:30]} 8. h3 {[%emt 0:00:30]} O-O {[%emt 0:00:30]} 9. Nbd2 {[%emt 0:01:30]} d6 {[%emt 0:01:30]} 10. c3 {[%emt 0:02:30]} Nbd7 {[%emt 0:01:30]} 11. Re1 {[%emt 0:02:30]} Qc7 {[%emt 0:00:30]} 12. Ng5 {[%emt 0:02:30]} h6 {[%emt 0:01:30]} 13. Nge4 {[%emt 0:01:30]} Rad8 {[%emt 0:11:30]} 14. Rc1 {[%emt 0:02:30]} Nxe4 {[%emt 0:05:30]} 15. Nxe4 {[%emt 0:00:30]} e5 {[%emt 0:20:30]} 16. Bd2 {[%emt 0:04:30]} f5 {[%emt 0:02:30]} 17. Ng3 {[%emt 0:06:30]} e4 {[%emt 0:00:30]} 18. Qh5 {[%emt 0:01:30]} Qc6 {[%emt 0:07:30]} 19. Nxf5 {[%emt 0:02:30]} Rxf5 {[%emt 0:00:30]} 20. Qxf5 {[%emt 0:00:30]} Nf6 {[%emt 0:12:30]} 21. Qe6+ {[%emt 0:01:30]} Kf8 {[%emt 0:01:30]} 22. Bc4 {[%emt 0:00:30]} Qe8 {[%emt 0:01:30]} 23. Bf1 {[%emt 0:09:30]} d5 {[%emt 0:03:30]} 24. c4 {[%emt 0:02:30]} Qg6 {[%emt 0:04:30]} 25. a3 {[%emt 0:01:30]} Bc8 {[%emt 0:06:25]} 26. Qe5 {[%emt 0:01:30]} Bxh3 {[%emt 0:04:09]} 27. cxd5 {[%emt 0:01:30]} a5 {[%emt 0:02:40]} 28. Rc6 {[%emt 0:00:30]} Bd7 {[%emt 0:02:43]} 29. d6 {[%emt 0:00:30]} 1-0